fUSD/lending_fUSD_20260524
["ID","MTS","AMOUNT","RATE_DAILY","PERIOD"]
[422910487,1779611442000,-150.0,0.00019502,4]
[422910502,1779611442000,-150.25647709,0.00019547,2]
[422910504,1779611442000,-1358.54243293,0.00019548,5]
[422910498,1779611442000,-500.0,0.00019547,2]
[422910479,1779611442000,-1026.63897664,0.000194,2]
[422910499,1779611442000,-401.56350951,0.00019547,2]
[422910497,1779611442000,-505.8966892,0.00019547,2]
[422910501,1779611442000,-3628.05,0.00019547,2]
[422910500,1779611442000,-916.58,0.00019547,2]
[422910496,1779611442000,-500.0,0.00019547,2]
[422910494,1779611442000,-150.0,0.00019546,4]
[422910493,1779611442000,-185.9559736,0.00019539,2]
[422910491,1779611442000,-558.711,0.0001953,2]
[422910503,1779611442000,-202.18508596,0.00019548,5]
[422910495,1779611442000,-500.0,0.00019547,2]
[422910547,1779611443000,-3429.4,0.00019548,2]
[422910543,1779611443000,-3628.05,0.00019548,2]
[422910545,1779611443000,-3628.05,0.00019548,2]
[422910539,1779611443000,-916.58,0.00019548,2]
[422910544,1779611443000,-3628.05,0.00019548,2]
[422910540,1779611443000,-3628.05,0.00019548,2]
[422910542,1779611443000,-3628.05,0.00019548,2]
[422910537,1779611443000,-916.58,0.00019548,2]
[422910538,1779611443000,-916.58,0.00019548,2]
[422910553,1779611443000,-300.0,0.00019548,2]
[422910548,1779611443000,-3429.4,0.00019548,2]
[422910546,1779611443000,-3628.05,0.00019548,2]
[422910557,1779611443000,-1182795.91137035,0.00019549,2]
[422910555,1779611443000,-300.0,0.00019548,2]
[422910556,1779611443000,-439.44845421,0.00019549,2]
[422910554,1779611443000,-666.0,0.00019548,2]
[422910549,1779611443000,-3429.4,0.00019548,2]
[422910550,1779611443000,-3429.4,0.00019548,2]
[422910551,1779611443000,-3429.4,0.00019548,2]
[422910572,1779611443000,-440.36629044,0.00018299,2]
[422910580,1779611443000,-59.63370956,0.00018299,2]
[422910552,1779611443000,-3429.4,0.00019548,2]
[422910590,1779611444000,-151.0,0.00018411,2]
[422910584,1779611444000,-20.36629044,0.000183,2]
[422910582,1779611444000,-151.0,0.000183,2]
[422910583,1779611444000,-151.0,0.000183,2]
[422910592,1779611444000,-151.0,0.00018411,2]
[422910586,1779611444000,-151.0,0.000183,2]
[422910585,1779611444000,-130.63370956,0.000183,2]
[422910581,1779611444000,-151.0,0.000183,2]
[422910587,1779611444000,-140.06709297,0.00018411,2]
[422910591,1779611444000,-151.0,0.00018411,2]
[422910602,1779611444000,-291.01743743,0.00019549,2]
[422910589,1779611444000,-279.798597,0.00018411,2]
[422910593,1779611444000,-151.0,0.00018411,2]
[422910596,1779611444000,-279.798599,0.00018983,2]
[422910594,1779611444000,-500.0,0.00018982,2]
[422910598,1779611444000,-6410.43525502,0.00019011,2]
[422910597,1779611444000,-151.0,0.00018983,2]
[422910599,1779611444000,-500.0,0.00019547,2]
[422910601,1779611444000,-534.11953558,0.00019548,2]
[422910600,1779611444000,-500.0,0.00019548,2]
[422910603,1779611444000,-30746.55159911,0.00019549,2]
[422910588,1779611444000,-139.73150403,0.00018411,2]
[422910606,1779611446000,-222.33575661,0.0001945,2]
[422910607,1779611446000,-212.70836049,0.0001945,2]
[422910609,1779611446000,-1017.12352263,0.00019549,2]
[422910605,1779611446000,-152.0,0.00019261,2]
[422910608,1779611446000,-1083.38454609,0.00019549,2]
[422910615,1779611447000,-5375.881,0.00019549,2]
[422910610,1779611447000,-152.0,0.00019008,7]
[422910612,1779611447000,-283.82629871,0.00019549,2]
[422910613,1779611447000,-951.46598943,0.00019549,2]
[422910616,1779611447000,-1279.40585,0.00019549,2]
[422910611,1779611447000,-7773.15677443,0.00019549,2]
[422910617,1779611447000,-786.8175,0.00019549,2]
[422910614,1779611447000,-655.2041005,0.00019549,2]
[422910620,1779611447000,-6947.59714692,0.00019549,2]
[422910621,1779611447000,-3809.86517128,0.00019549,2]
[422910618,1779611447000,-9488.43538743,0.00019549,2]
[422910619,1779611447000,-609.76852916,0.00019549,2]
[422910650,1779612244000,165.88,0.00026503,120]
[422910663,1779612541000,1000.0,0.0002808,120]
[422910694,1779612632000,-150.0,0.00017189,2]
[422910692,1779612632000,-150.0,0.00017161,2]
[422910695,1779612632000,-150.0,0.00017189,2]
[422910696,1779612632000,-150.0,0.00017194,2]
[422910699,1779612632000,-150.0,0.00017259,2]
[422910697,1779612632000,-150.0,0.00017226,2]
[422910698,1779612632000,-150.0,0.00017253,2]
[422910700,1779612632000,-150.0,0.00017292,2]
[422910693,1779612632000,-150.0,0.00017182,2]
[422910705,1779612632000,-150.0,0.00017334,2]
[422910701,1779612632000,-150.0,0.000173,2]
[422910702,1779612632000,-150.0,0.00017316,2]
[422910704,1779612632000,-150.0,0.00017325,2]
[422910706,1779612632000,-150.0,0.00017347,2]
[422910708,1779612632000,-150.0,0.00017357,2]
[422910707,1779612632000,-150.0,0.00017347,2]
[422910709,1779612632000,-150.0,0.0001739,2]
[422910703,1779612632000,-150.0,0.00017316,2]
[422910690,1779612632000,-150.5,0.0001714,2]
[422910676,1779612632000,-973.95,0.0001683,2]
[422910689,1779612632000,-150.0,0.00017128,2]
[422910710,1779612632000,-150.0,0.00017418,2]
[422910670,1779612632000,-150.5,9.349e-05,2]
[422910672,1779612632000,-150.5,0.00012466,2]
[422910673,1779612632000,-150.5,0.00014024,2]
[422910675,1779612632000,-384.5,0.00016438,2]
[422910674,1779612632000,-150.5,0.00015582,2]
[422910671,1779612632000,-150.5,0.00010907,2]
[422910678,1779612632000,-1200.0,0.00017062,2]
[422910677,1779612632000,-377.29,0.00016865,2]
[422910679,1779612632000,-150.0,0.00017063,2]
[422910681,1779612632000,-150.0,0.00017063,2]
[422910680,1779612632000,-150.0,0.00017063,2]
[422910682,1779612632000,-150.0,0.00017063,2]
[422910688,1779612632000,-150.0,0.00017096,2]
[422910685,1779612632000,-150.0,0.00017063,2]
[422910684,1779612632000,-150.0,0.00017063,2]
[422910683,1779612632000,-150.0,0.00017063,2]
[422910687,1779612632000,-150.0,0.00017063,2]
[422910686,1779612632000,-150.0,0.00017063,2]
[422910691,1779612632000,-150.0,0.00017158,2]
[422910711,1779612632000,-150.0,0.00017423,2]
[422910726,1779612632000,-150.0,0.00017569,2]
[422910715,1779612632000,-150.0,0.00017442,2]
[422910739,1779612632000,-150.0,0.00017717,2]
[422910742,1779612632000,-150.0,0.00017774,2]
[422910741,1779612632000,-150.0,0.00017749,2]
[422910743,1779612632000,-150.0,0.00017782,2]
[422910744,1779612632000,-150.0,0.00017815,2]
[422910748,1779612632000,-150.0,0.00017821,2]
[422910746,1779612632000,-150.0,0.00017821,2]
[422910745,1779612632000,-150.0,0.00017821,2]
[422910738,1779612632000,-150.0,0.00017695,2]
[422910747,1779612632000,-150.0,0.00017821,2]
[422910750,1779612632000,-150.0,0.00017876,2]
[422910751,1779612632000,-150.0,0.0001788,2]
[422910754,1779612632000,-150.0,0.00017916,2]
[422910753,1779612632000,-150.0,0.00017913,2]
[422910756,1779612632000,-150.0,0.00017946,2]
[422910755,1779612632000,-207.606546,0.00017943,2]
[422910757,1779612632000,-150.0,0.00017948,2]
[422910758,1779612632000,-150.0,0.00017948,2]
[422910749,1779612632000,-150.0,0.00017848,2]
[422910734,1779612632000,-150.0,0.00017655,2]
[422910752,1779612632000,-150.0,0.00017892,2]
[422910736,1779612632000,-150.0,0.00017684,2]
[422910735,1779612632000,-165.88,0.00017669,2]
[422910713,1779612632000,-150.0,0.00017442,2]
[422910714,1779612632000,-150.0,0.00017442,2]
[422910727,1779612632000,-1246.66,0.00017572,2]
[422910725,1779612632000,-150.0,0.00017569,2]
[422910724,1779612632000,-150.0,0.00017553,2]
[422910716,1779612632000,-150.0,0.00017455,2]
[422910719,1779612632000,-150.0,0.00017521,2]
[422910718,1779612632000,-150.0,0.00017488,2]
[422910712,1779612632000,-150.0,0.00017442,2]
[422910723,1779612632000,-150.0,0.00017537,2]
[422910729,1779612632000,-150.0,0.00017586,2]
[422910730,1779612632000,-150.0,0.00017605,2]
[422910728,1779612632000,-531.91,0.00017572,2]
[422910732,1779612632000,-150.0,0.00017632,2]
[422910733,1779612632000,-150.0,0.00017651,2]
[422910731,1779612632000,-150.0,0.00017619,2]
[422910740,1779612632000,-150.0,0.00017727,2]
[422910721,1779612632000,-150.0,0.00017537,2]
[422910737,1779612632000,-150.0,0.00017695,2]
[422910764,1779612633000,-150.0,0.00018044,2]
[422910759,1779612633000,-150.0,0.00017957,2]
[422910762,1779612633000,-150.0,0.00018011,2]
[422910761,1779612633000,-150.0,0.00018011,2]
[422910760,1779612633000,-150.0,0.00017978,2]
[422910766,1779612633000,-150.0,0.00018074,2]
[422910763,1779612633000,-150.0,0.00018011,2]
[422910771,1779612633000,-88.87545583,0.00018129,2]
[422910767,1779612633000,-150.0,0.00018076,2]
[422910765,1779612633000,-150.0,0.00018074,2]
[422910769,1779612633000,-150.0,0.00018109,2]
[422910831,1779612638000,-487.0,0.00018501,2]
[422910836,1779612638000,-150.0,0.0001858,2]
[422910830,1779612638000,-150.0,0.00018501,2]
[422910834,1779612638000,-150.0,0.00018534,2]
[422910833,1779612638000,-759.63,0.00018501,2]
[422910828,1779612638000,-150.0,0.00018485,2]
[422910827,1779612638000,-2588.55263616,0.00018477,2]
[422910823,1779612638000,-150.0,0.00018453,2]
[422910826,1779612638000,-4468.80467327,0.00018477,2]
[422910821,1779612638000,-150.0,0.00018436,2]
[422910822,1779612638000,-150.0,0.00018453,2]
[422910819,1779612638000,-113.99206297,0.00018417,2]
[422910820,1779612638000,-36.00793703,0.00018417,2]
[422910818,1779612638000,-137.72180997,0.0001841,2]
[422910824,1779612638000,-68.94606297,0.00018469,2]
[422910825,1779612638000,-81.05393703,0.00018469,2]
[422910832,1779612638000,-487.0,0.00018501,2]
[422910829,1779612638000,-150.0,0.00018485,2]
[422910835,1779612638000,-150.0,0.00018567,2]
[422910852,1779612638000,-185.9559736,0.00018692,2]
[422910851,1779612638000,-150.0,0.00018688,2]
[422910847,1779612638000,-439.44845421,0.0001862,2]
[422910844,1779612638000,-5128.34820407,0.00018606,2]
[422910845,1779612638000,-3257.32129919,0.00018606,2]
[422910846,1779612638000,-290.0294114,0.00018606,2]
[422910848,1779612638000,-150.0,0.00018632,2]
[422910850,1779612638000,-150.0,0.00018675,2]
[422910843,1779612638000,-7057.35730943,0.00018606,2]
[422910842,1779612638000,-150.0,0.00018603,2]
[422910840,1779612638000,-150.0,0.00018599,2]
[422910841,1779612638000,-2500.0,0.00018602,2]
[422910839,1779612638000,-150.0,0.0001858,2]
[422910838,1779612638000,-150.0,0.0001858,2]
[422910849,1779612638000,-150.0,0.00018665,2]
[422910837,1779612638000,-150.0,0.0001858,2]
[422910891,1779612639000,-500.0,0.00018701,2]
[422910889,1779612639000,-500.0,0.00018701,2]
[422910890,1779612639000,-500.0,0.00018701,2]
[422910888,1779612639000,-500.0,0.00018701,2]
[422910886,1779612639000,-500.0,0.00018701,2]
[422910884,1779612639000,-500.0,0.00018701,2]
[422910887,1779612639000,-500.0,0.00018701,2]
[422910882,1779612639000,-457.9767215,0.00018701,2]
[422910892,1779612639000,-500.0,0.00018701,2]
[422910885,1779612639000,-500.0,0.00018701,2]
[422910893,1779612639000,-500.0,0.00018701,2]
[422910902,1779612639000,-512.90149944,0.00018701,2]
[422910896,1779612639000,-500.0,0.00018701,2]
[422910897,1779612639000,-500.0,0.00018701,2]
[422910898,1779612639000,-500.0,0.00018701,2]
[422910895,1779612639000,-500.0,0.00018701,2]
[422910899,1779612639000,-500.0,0.00018701,2]
[422910903,1779612639000,-505.8966892,0.00018701,2]
[422910900,1779612639000,-500.0,0.00018701,2]
[422910883,1779612639000,-500.0,0.00018701,2]
[422910904,1779612639000,-500.0,0.00018701,2]
[422910907,1779612639000,-500.0,0.00018701,2]
[422910905,1779612639000,-500.0,0.00018701,2]
[422910906,1779612639000,-500.0,0.00018701,2]
[422910894,1779612639000,-500.0,0.00018701,2]
[422910881,1779612639000,-500.0,0.00018701,2]
[422910870,1779612639000,-500.0,0.00018701,2]
[422910878,1779612639000,-500.0,0.00018701,2]
[422910854,1779612639000,-150.5,0.00018699,2]
[422910853,1779612639000,-150.0,0.00018697,2]
[422910855,1779612639000,-1688.5,0.00018699,2]
[422910857,1779612639000,-151.0,0.00018699,2]
[422910856,1779612639000,-171.58284058,0.00018699,2]
[422910863,1779612639000,-500.0,0.00018701,2]
[422910859,1779612639000,-202.18508596,0.00018701,5]
[422910858,1779612639000,-1358.54243293,0.00018701,5]
[422910860,1779612639000,-500.0,0.00018701,2]
[422910861,1779612639000,-500.0,0.00018701,2]
[422910862,1779612639000,-500.0,0.00018701,2]
[422910864,1779612639000,-500.0,0.00018701,2]
[422910865,1779612639000,-500.0,0.00018701,2]
[422910866,1779612639000,-500.0,0.00018701,2]
[422910868,1779612639000,-500.0,0.00018701,2]
[422910869,1779612639000,-500.0,0.00018701,2]
[422910867,1779612639000,-500.0,0.00018701,2]
[422910871,1779612639000,-500.0,0.00018701,2]
[422910873,1779612639000,-500.0,0.00018701,2]
[422910874,1779612639000,-500.0,0.00018701,2]
[422910875,1779612639000,-500.0,0.00018701,2]
[422910877,1779612639000,-500.0,0.00018701,2]
[422910872,1779612639000,-500.0,0.00018701,2]
[422910876,1779612639000,-500.0,0.00018701,2]
[422910879,1779612639000,-500.0,0.00018701,2]
[422910880,1779612639000,-500.0,0.00018701,2]
[422910909,1779612639000,-500.0,0.00018701,2]
[422910901,1779612639000,-500.0,0.00018701,2]
[422910911,1779612639000,-500.0,0.00018701,2]
[422910942,1779612639000,-3628.05,0.00018701,2]
[422910939,1779612639000,-3628.05,0.00018701,2]
[422910941,1779612639000,-3628.05,0.00018701,2]
[422910938,1779612639000,-3628.05,0.00018701,2]
[422910944,1779612639000,-3628.05,0.00018701,2]
[422910945,1779612639000,-3628.05,0.00018701,2]
[422910946,1779612639000,-3628.05,0.00018701,2]
[422910947,1779612639000,-3628.05,0.00018701,2]
[422910949,1779612639000,-500.0,0.00018701,2]
[422910950,1779612639000,-500.0,0.00018701,2]
[422910956,1779612639000,-3286.51,0.00018701,2]
[422910955,1779612639000,-3286.51,0.00018701,2]
[422910953,1779612639000,-3286.51,0.00018701,2]
[422910951,1779612639000,-598.15296991,0.00018701,2]
[422910952,1779612639000,-3286.51,0.00018701,2]
[422910948,1779612639000,-500.0,0.00018701,2]
[422910954,1779612639000,-3286.51,0.00018701,2]
[422910957,1779612639000,-3286.51,0.00018701,2]
[422910958,1779612639000,-300.0,0.00018701,2]
[422910959,1779612639000,-666.0,0.00018701,2]
[422910960,1779612639000,-300.0,0.00018701,2]
[422910961,1779612639000,-1562866.91790145,0.00018702,2]
[422910963,1779612639000,-849.0,0.00018702,2]
[422910964,1779612639000,-39007.32644205,0.00018702,2]
[422910962,1779612639000,-273.2694314,0.00018702,2]
[422910935,1779612639000,-916.58,0.00018701,2]
[422910908,1779612639000,-500.0,0.00018701,2]
[422910943,1779612639000,-3628.05,0.00018701,2]
[422910934,1779612639000,-916.58,0.00018701,2]
[422910910,1779612639000,-500.0,0.00018701,2]
[422910913,1779612639000,-604.93140092,0.00018701,2]
[422910912,1779612639000,-500.0,0.00018701,2]
[422910916,1779612639000,-500.0,0.00018701,2]
[422910914,1779612639000,-500.0,0.00018701,2]
[422910915,1779612639000,-500.0,0.00018701,2]
[422910917,1779612639000,-500.0,0.00018701,2]
[422910919,1779612639000,-401.56350951,0.00018701,2]
[422910918,1779612639000,-500.0,0.00018701,2]
[422910920,1779612639000,-500.0,0.00018701,2]
[422910922,1779612639000,-500.0,0.00018701,2]
[422910921,1779612639000,-500.0,0.00018701,2]
[422910924,1779612639000,-500.0,0.00018701,2]
[422910923,1779612639000,-500.0,0.00018701,2]
[422910925,1779612639000,-500.0,0.00018701,2]
[422910928,1779612639000,-916.58,0.00018701,2]
[422910927,1779612639000,-508.87111765,0.00018701,2]
[422910931,1779612639000,-916.58,0.00018701,2]
[422910930,1779612639000,-916.58,0.00018701,2]
[422910926,1779612639000,-500.0,0.00018701,2]
[422910929,1779612639000,-916.58,0.00018701,2]
[422910932,1779612639000,-916.58,0.00018701,2]
[422910933,1779612639000,-916.58,0.00018701,2]
[422910937,1779612639000,-916.58,0.00018701,2]
[422910936,1779612639000,-916.58,0.00018701,2]
[422910940,1779612639000,-3628.05,0.00018701,2]
[422910965,1779612640000,-615.21547425,0.00018702,2]
[422910969,1779612640000,-1497.39788495,0.00018701,2]
[422910970,1779612640000,-652.04183587,0.00018701,2]
[422910966,1779612640000,-780.86,0.00018702,2]
[422910985,1779612643000,-188.86343107,0.00018701,2]
[422910993,1779612643000,-3286.51,0.00018701,2]
[422910994,1779612643000,-1013.84907629,0.00018701,2]
[422910992,1779612643000,-99.48159598,0.00018701,2]
[422910990,1779612643000,-773.56120523,0.00018701,2]
[422910991,1779612643000,-454.68174005,0.00018701,2]
[422910986,1779612643000,-496.76297973,0.00018701,2]
[422910987,1779612643000,-1226.85239246,0.00018701,2]
[422910989,1779612643000,-1958.78545874,0.00018701,2]
[422910984,1779612643000,-510.13958758,0.00018701,2]
[422910988,1779612643000,-1562.89462781,0.00018701,2]
[422910983,1779612643000,-438.06726053,0.00018701,2]
[422911039,1779612646000,-658.45431243,0.00018701,2]
[422911051,1779612646000,-1354.8525,0.00018701,2]
[422911054,1779612647000,-4580.66725332,0.00018702,2]
[422911052,1779612647000,-259.35411128,0.00018701,2]
[422911053,1779612647000,-4830.6327043,0.00018702,2]
[422911059,1779612861000,10285.11758429,0.00028,120]
[422911081,1779613741000,1000.0,0.00028079,120]
[422911099,1779613831000,-150.0,0.00016447,2]
[422911095,1779613831000,-386.7,0.00016438,2]
[422911094,1779613831000,-200.0,0.00016298,2]
[422911096,1779613831000,-156.06399732,0.00016447,2]
[422911091,1779613831000,-150.53,8.866e-05,2]
[422911092,1779613831000,-2500.0,0.00016262,2]
[422911093,1779613831000,-354.84,0.00016281,2]
[422911097,1779613831000,-150.0,0.00016447,2]
[422911104,1779613831000,-150.0,0.00016447,2]
[422911100,1779613831000,-150.0,0.00016447,2]
[422911101,1779613831000,-150.0,0.00016447,2]
[422911102,1779613831000,-150.0,0.00016447,2]
[422911106,1779613831000,-6355.6614336,0.00016474,2]
[422911105,1779613831000,-150.0,0.00016447,2]
[422911103,1779613831000,-150.0,0.00016447,2]
[422911098,1779613831000,-150.0,0.00016447,2]
[422911125,1779613837000,-150.0,0.00016579,2]
[422911127,1779613837000,-150.0,0.00016639,2]
[422911130,1779613837000,-150.0,0.00016675,2]
[422911131,1779613837000,-150.0,0.00016675,2]
[422911129,1779613837000,-150.0,0.00016646,2]
[422911128,1779613837000,-163.48,0.00016639,2]
[422911126,1779613837000,-150.0,0.00016613,2]
[422911124,1779613837000,-150.0,0.00016568,2]
[422911132,1779613837000,-150.0,0.00016675,2]
[422911121,1779613837000,-150.0,0.00016546,2]
[422911120,1779613837000,-150.0,0.00016543,2]
[422911119,1779613837000,-150.0,0.00016513,2]
[422911117,1779613837000,-150.0,0.0001648,2]
[422911118,1779613837000,-208.8304494,0.00016491,2]
[422911115,1779613837000,-8111.8385664,0.00016474,2]
[422911116,1779613837000,-285.68,0.00016474,2]
[422911122,1779613837000,-150.0,0.00016561,2]
[422911123,1779613837000,-150.0,0.00016561,2]
[422911142,1779613837000,-150.0,0.00016812,2]
[422911134,1779613837000,-150.0,0.0001669,2]
[422911133,1779613837000,-150.0,0.00016679,2]
[422911149,1779613837000,-150.0,0.00016903,2]
[422911150,1779613837000,-150.0,0.00016912,2]
[422911139,1779613837000,-150.0,0.00016779,2]
[422911141,1779613837000,-150.0,0.00016789,2]
[422911140,1779613837000,-150.0,0.00016789,2]
[422911138,1779613837000,-150.0,0.00016751,2]
[422911137,1779613837000,-150.0,0.00016746,2]
[422911151,1779613837000,-150.0,0.00016927,2]
[422911144,1779613837000,-150.0,0.00016831,2]
[422911148,1779613837000,-150.0,0.00016903,2]
[422911145,1779613837000,-150.0,0.00016845,2]
[422911146,1779613837000,-150.0,0.00016879,2]
[422911135,1779613837000,-150.0,0.00016712,2]
[422911147,1779613837000,-150.0,0.00016903,2]
[422911143,1779613837000,-150.0,0.00016812,2]
[422911136,1779613837000,-150.0,0.00016735,2]
[422911200,1779613838000,-150.0,0.00017477,2]
[422911198,1779613838000,-150.0,0.00017474,2]
[422911194,1779613838000,-150.0,0.00017421,2]
[422911199,1779613838000,-150.0,0.00017474,2]
[422911196,1779613838000,-150.0,0.00017443,2]
[422911190,1779613838000,-150.0,0.00017408,2]
[422911202,1779613838000,-150.0,0.00017505,2]
[422911188,1779613838000,-150.0,0.00017377,2]
[422911185,1779613838000,-150.0,0.0001736,2]
[422911181,1779613838000,-150.0,0.00017312,2]
[422911184,1779613838000,-150.0,0.0001736,2]
[422911192,1779613838000,-150.0,0.0001741,2]
[422911203,1779613838000,-150.0,0.0001751,2]
[422911206,1779613838000,-150.0,0.00017576,2]
[422911201,1779613838000,-486.97,0.00017486,2]
[422911205,1779613838000,-150.0,0.00017543,2]
[422911207,1779613838000,-150.0,0.00017589,2]
[422911213,1779613838000,-150.0,0.00017643,2]
[422911214,1779613838000,-150.0,0.00017665,2]
[422911215,1779613838000,-150.0,0.00017665,2]
[422911182,1779613838000,-150.0,0.00017344,2]
[422911210,1779613838000,-383.78,0.00017595,2]
[422911209,1779613838000,-150.0,0.00017589,2]
[422911212,1779613838000,-150.0,0.00017609,2]
[422911208,1779613838000,-150.0,0.00017589,2]
[422911216,1779613838000,-150.0,0.00017676,2]
[422911211,1779613838000,-150.0,0.00017601,2]
[422911218,1779613838000,-150.0,0.00017703,2]
[422911204,1779613838000,-150.0,0.00017543,2]
[422911180,1779613838000,-150.0,0.0001731,2]
[422911166,1779613838000,-150.0,0.0001712,2]
[422911179,1779613838000,-150.0,0.00017299,2]
[422911217,1779613838000,-150.0,0.00017697,2]
[422911160,1779613838000,-150.0,0.00017045,2]
[422911161,1779613838000,-150.0,0.00017056,2]
[422911152,1779613838000,-150.0,0.00016934,2]
[422911154,1779613838000,-150.0,0.00016945,2]
[422911153,1779613838000,-500.0,0.00016945,2]
[422911159,1779613838000,-150.0,0.00017024,2]
[422911155,1779613838000,-150.0,0.00016978,2]
[422911156,1779613838000,-150.0,0.00017011,2]
[422911157,1779613838000,-150.0,0.00017018,2]
[422911158,1779613838000,-150.0,0.00017018,2]
[422911173,1779613838000,-150.0,0.00017211,2]
[422911163,1779613838000,-150.0,0.00017078,2]
[422911162,1779613838000,-150.0,0.00017056,2]
[422911174,1779613838000,-150.0,0.00017216,2]
[422911164,1779613838000,-2000.0,0.000171,2]
[422911168,1779613838000,-150.0,0.00017132,2]
[422911171,1779613838000,-150.0,0.00017178,2]
[422911170,1779613838000,-150.0,0.00017144,2]
[422911169,1779613838000,-150.0,0.00017132,2]
[422911167,1779613838000,-150.0,0.00017132,2]
[422911172,1779613838000,-150.0,0.00017178,2]
[422911165,1779613838000,-150.0,0.00017111,2]
[422911176,1779613838000,-150.0,0.00017246,2]
[422911187,1779613838000,-150.0,0.00017363,2]
[422911186,1779613838000,-150.0,0.0001736,2]
[422911178,1779613838000,-150.0,0.00017277,2]
[422911177,1779613838000,-150.0,0.00017246,2]
[422911175,1779613838000,-150.0,0.00017244,2]
[422911183,1779613838000,-150.0,0.0001736,2]
[422911219,1779613838000,-150.0,0.00017703,2]
[422911275,1779613838000,-500.0,0.00018255,2]
[422911228,1779613838000,-150.0,0.00017817,2]
[422911257,1779613838000,-5789.96298228,0.00018156,2]
[422911250,1779613838000,-150.0,0.00018046,2]
[422911255,1779613838000,-150.0,0.00018152,2]
[422911267,1779613838000,-500.0,0.00018255,2]
[422911259,1779613838000,-150.0,0.0001816,2]
[422911220,1779613838000,-150.0,0.00017709,2]
[422911258,1779613838000,-290.0294114,0.00018156,2]
[422911260,1779613838000,-150.0,0.0001816,2]
[422911261,1779613838000,-150.0,0.00018174,2]
[422911262,1779613838000,-150.0,0.00018178,2]
[422911270,1779613838000,-500.0,0.00018255,2]
[422911268,1779613838000,-457.9767215,0.00018255,2]
[422911269,1779613838000,-505.8966892,0.00018255,2]
[422911265,1779613838000,-185.9559736,0.00018246,2]
[422911263,1779613838000,-150.0,0.00018208,2]
[422911264,1779613838000,-150.0,0.00018241,2]
[422911272,1779613838000,-500.0,0.00018255,2]
[422911280,1779613838000,-500.0,0.00018255,2]
[422911273,1779613838000,-500.0,0.00018255,2]
[422911281,1779613838000,-401.56350951,0.00018255,2]
[422911271,1779613838000,-500.0,0.00018255,2]
[422911282,1779613838000,-2744.71,0.00018255,2]
[422911274,1779613838000,-500.0,0.00018255,2]
[422911276,1779613838000,-500.0,0.00018255,2]
[422911279,1779613838000,-500.0,0.00018255,2]
[422911278,1779613838000,-500.0,0.00018255,2]
[422911277,1779613838000,-500.0,0.00018255,2]
[422911284,1779613838000,-2744.71,0.00018255,2]
[422911283,1779613838000,-2744.71,0.00018255,2]
[422911247,1779613838000,-150.0,0.00018041,2]
[422911254,1779613838000,-150.0,0.00018141,2]
[422911266,1779613838000,-500.0,0.00018255,2]
[422911249,1779613838000,-150.0,0.00018046,2]
[422911221,1779613838000,-299.99,0.00017728,4]
[422911231,1779613838000,-150.0,0.00017842,2]
[422911229,1779613838000,-150.0,0.00017817,2]
[422911223,1779613838000,-150.0,0.00017742,2]